bitfinex-derivatives/quotes_ETHF0:USTF0_20241207
["timestamp","ask_amount","ask_price","bid_price","bid_amount"]
[1733565241345,0.584,3986.2,3986.1,10.63599308]
[1733565241547,0.584,3986.2,3986.1,10.71606059]
[1733565242054,0.584,3986.2,3986.1,10.71606144]
[1733565242359,3.54175661,3986.2,3986.1,10.71606144]
[1733565242646,0.584,3986.2,3986.1,4.20025518]
[1733565242854,4.52767549,3986.2,3986.1,4.12188733]
[1733565243250,0.584,3986.2,3986.1,4.12188733]
[1733565243447,0.4086,3986.2,3986.1,4.12188733]
[1733565243649,0.4086,3986.2,3986.1,4.79873694]
[1733565244056,0.8178,3986.2,3986.1,4.79873694]
[1733565244246,0.8178,3986.2,3986.1,4.79887004]
[1733565244650,0.8178,3986.2,3986.1,4.9242586]
[1733565244851,0.8178,3986.2,3986.1,4.32545108]
[1733565244852,0.9932,3986.2,3986.1,4.32545108]
[1733565245459,0.9932,3986.2,3986.1,4.32545409]
[1733565246350,0.9932,3986.2,3986.1,4.32550266]
[1733565246564,0.9932,3986.2,3986.1,0.37916114]
[1733565246756,0.9932,3986.2,3986.1,4.32540599]
[1733565247160,4.93687549,3986.2,3986.1,4.20001452]
[1733565247463,4.93687549,3986.2,3986.1,0.25376967]
[1733565248258,5.33387549,3986.2,3986.1,0.25376967]
[1733565248562,5.33387549,3986.2,3986.1,0.1754]
[1733565248764,0.17541,3985.9,3985.8,3.2078]
[1733565248952,1.08074173,3985.9,3985.8,3.2078]
[1733565249156,0.90533173,3985.9,3985.4,3.2078]
[1733565249461,5.10441155,3985.5,3985.4,3.38323]
[1733565249658,5.10441155,3985.5,3985.4,3.46160865]
[1733565250364,4.92898155,3985.5,3985.4,3.46160865]
[1733565250766,6.23131328,3985.6,3985.4,3.28617865]
[1733565250966,6.23131328,3985.6,3985.5,0.07837726]
[1733565251161,1.30233173,3985.6,3985.5,0.25380726]
[1733565251359,5.31538155,3985.7,3985.5,0.07837726]
[1733565251563,5.31538155,3985.7,3985.6,0.25380726]
[1733565254672,0.3864,3985.7,3985.6,0.17543]
[1733565254866,5.31518247,3985.7,3985.6,0.17543]
[1733565255072,5.31521804,3985.7,3985.6,0.17543]
[1733565255272,0.3864,3985.7,3985.6,0.17543]
[1733565255474,5.31500716,3985.7,3985.6,0.17543]
[1733565255669,0.3864,3985.7,3985.6,13.98236883]
[1733565255971,0.3864,3985.7,3985.6,13.90399298]
[1733565256674,0.3864,3985.7,3985.6,14.10777147]
[1733565257566,0.3864,3985.7,3985.6,14.18614529]
[1733565257772,0.3864,3985.7,3985.6,24.04907397]
[1733565257972,0.3864,3985.7,3985.6,14.18614529]
[1733565258471,0.3882,3986.0,3985.9,0.17539]
[1733565258669,0.3882,3986.0,3985.9,17.39390529]
[1733565258868,0.3882,3986.0,3985.9,17.39389681]
[1733565259074,0.3882,3986.0,3985.9,17.3938654]
[1733565259672,0.3882,3986.0,3985.9,58.1938654]
[1733565260475,0.3882,3986.0,3985.9,58.19160124]
[1733565260871,0.3882,3986.0,3985.9,17.39160124]
[1733565261976,0.7936,3986.4,3986.3,0.17538]
[1733565262172,2.08103173,3986.4,3986.3,4.9545608]
[1733565262476,2.08103173,3986.4,3986.3,4.9545525]
[1733565262867,5.03826847,3986.4,3986.3,0.37911956]
[1733565263675,5.03826847,3986.4,3986.3,0.25374137]
[1733565264676,5.21363847,3986.4,3986.3,0.07836137]
[1733565264877,5.03826847,3986.4,3986.3,0.25374137]
[1733565265470,5.03845146,3986.4,3986.3,0.25374137]
[1733565265877,2.08103173,3986.4,3986.3,0.07836137]
[1733565266171,2.08103173,3986.4,3986.3,0.07836422]
[1733565266376,5.03839831,3986.4,3986.3,0.07836422]
[1733565266578,2.25640173,3986.4,3986.3,0.07836422]
[1733565267783,6.19938405,3986.4,3986.3,0.07836422]
[1733565268279,2.25640173,3986.4,3986.3,0.07836422]
[1733565270473,6.19938405,3986.4,3986.3,0.07836422]
[1733565270880,0.17539,3986.0,3985.9,3.2078]
[1733565271078,1.08072173,3986.0,3985.9,3.33318737]
[1733565271781,1.08072173,3986.0,3985.9,3.2078]
[1733565275277,1.49652173,3986.0,3985.9,3.2078]
[1733565275683,1.32113173,3986.0,3985.7,0.1754]
[1733565275882,0.1754,3985.8,3985.7,0.1754]
[1733565276476,0.8126,3985.9,3985.6,40.8]
[1733565276677,0.17541,3985.5,3985.4,3.2078]
[1733565277182,0.17541,3985.5,3985.4,44.0078]
[1733565277877,0.1754,3985.8,3985.7,0.1754]
[1733565278082,0.3993,3985.8,3985.7,4.75515363]
[1733565278685,0.3993,3985.8,3985.7,4.8805472]
[1733565279085,0.5747,3985.8,3985.7,4.8805472]
[1733565279781,0.5747,3985.8,3985.7,4.88054623]
[1733565279983,0.5747,3985.8,3985.7,4.87969125]
[1733565280182,0.5747,3985.8,3985.7,10.79583215]
[1733565280690,0.5747,3985.8,3985.7,4.87969125]
[1733565281077,0.5747,3985.8,3985.7,10.79568694]
[1733565282789,0.5747,3985.8,3985.7,10.87405936]
[1733565283689,0.5747,3985.8,3985.7,10.87406395]
[1733565283892,0.5747,3985.8,3985.7,4.95806826]
[1733565284392,0.3993,3985.8,3985.7,4.95806826]
[1733565284688,0.5747,3985.8,3985.7,4.95806164]
[1733565285678,0.5747,3985.8,3985.7,10.87466554]
[1733565286079,0.5747,3985.8,3985.7,4.95806164]
[1733565286277,0.3993,3985.8,3985.7,10.87474883]
[1733565286690,1.30463173,3985.8,3985.7,10.87476072]
[1733565286989,1.48005173,3985.8,3985.7,4.75530225]
[1733565287188,1.48005173,3985.8,3985.7,4.12019618]
[1733565287388,1.48005173,3985.8,3985.7,0.17542]
[1733565287589,1.48005173,3985.8,3985.7,4.1202105]
[1733565288183,1.48005173,3985.8,3985.7,0.17542]
[1733565288378,1.48005173,3985.8,3985.7,4.12018747]
[1733565288581,4.43857597,3985.8,3985.7,4.12018747]
[1733565291290,1.48005173,3985.8,3985.7,4.12018747]
[1733565291492,4.43857597,3985.8,3985.7,4.12018747]
[1733565292190,1.48005173,3985.8,3985.7,4.12018747]
[1733565293094,1.48005173,3985.8,3985.7,0.17542]
[1733565293893,1.48005173,3985.8,3985.7,0.25379939]
[1733565295796,1.48005173,3985.8,3985.7,0.07837939]
[1733565295991,1.48005173,3985.8,3985.7,0.25379939]
[1733565296191,1.48005173,3985.8,3985.7,0.07837939]
[1733565297899,1.30463173,3985.8,3985.3,44.18324]
[1733565298198,0.17543,3985.4,3985.3,44.18324]
[1733565298400,0.17543,3985.4,3985.3,44.38703835]
[1733565298696,1.35313,3985.4,3985.3,44.38703835]
[1733565299496,1.35313,3985.4,3985.3,44.38703864]
[1733565299797,1.35313,3985.4,3985.3,44.21159864]
[1733565300097,1.35313,3985.4,3985.3,44.08618398]
[1733565300500,6.27980453,3985.4,3985.3,44.26162398]
[1733565300799,1.35313,3985.4,3985.3,44.26162398]
[1733565300992,1.35313,3985.4,3985.3,45.41084493]
[1733565301392,1.35313,3985.4,3985.3,44.74289874]
[1733565301592,1.35313,3985.4,3985.3,40.8]
[1733565302193,1.35313,3985.4,3985.3,0.17544]
[1733565305095,1.1777,3985.4,3985.2,40.8]
[1733565305302,0.90533173,3985.3,3985.1,0.17544]
[1733565305499,0.17544,3985.2,3985.1,0.17544]
[1733565305695,0.90533173,3985.3,3984.9,7.32614874]
[1733565305904,0.17545,3985.0,3984.9,47.95069874]
[1733565306198,0.17545,3985.0,3984.9,3.2078]
[1733565306397,0.57415,3985.0,3984.9,3.2078]
[1733565307805,0.57415,3985.0,3984.8,0.17546]
[1733565307806,0.17546,3984.9,3984.8,0.17546]
[1733565307999,5.78985912,3984.9,3984.8,0.17546]
[1733565308199,0.17546,3984.8,3984.7,40.97546]
[1733565309093,0.17546,3984.8,3984.7,41.05385241]
[1733565309902,0.17546,3984.8,3984.7,41.05385264]
[1733565310092,0.17546,3984.8,3984.7,40.97546]
[1733565310298,3.12860917,3984.8,3984.7,41.05385256]
[1733565311707,3.12860917,3984.8,3984.7,40.97546]
[1733565311908,3.12860917,3984.8,3984.7,41.05385221]
[1733565313006,2.95314917,3984.8,3984.7,41.05385221]
[1733565313412,4.8023409,3984.9,3984.8,0.17546]
[1733565313700,4.8023409,3984.9,3984.8,0.25385221]
[1733565315203,4.58666739,3985.1,3984.8,0.25385221]
[1733565315204,2.95314917,3985.1,3984.8,1.18752545]
[1733565315501,2.95314917,3985.5,3985.0,4.11313173]
[1733565315710,0.90533173,3985.6,3985.5,0.17543]
[1733565315711,3.85877419,3985.6,3985.5,0.17543]
[1733565315896,3.85877419,3985.6,3985.5,0.25382221]
[1733565316102,0.90533173,3985.6,3985.5,0.25382221]
[1733565316509,0.90533173,3985.6,3985.5,0.25380873]
[1733565317010,0.90533173,3985.6,3985.5,4.19670629]
[1733565317903,0.90533173,3985.6,3985.5,0.25380755]
[1733565318105,0.90533173,3985.6,3985.5,4.19670629]
[1733565319510,0.90533173,3985.6,3985.5,0.25380755]
[1733565320202,0.90533173,3985.6,3985.5,0.17543]
[1733565320403,0.90533173,3985.6,3985.5,0.25381083]
[1733565321211,1.08077173,3985.6,3985.5,0.25381083]
[1733565322104,1.08077173,3985.6,3985.5,0.17543]
[1733565322706,1.08077173,3985.6,3985.0,3.94289874]
[1733565322707,4.11313173,3985.6,3985.0,3.94289874]
[1733565323011,1.08079173,3985.2,3985.1,0.17546]
[1733565323207,0.90533173,3985.2,3985.1,0.17546]
[1733565323607,1.29613173,3985.2,3985.1,0.17546]
[1733565326610,1.47159173,3985.2,3985.1,0.17546]
[1733565327307,0.17547,3985.1,3985.0,0.0409543]
[1733565327510,0.98607,3985.1,3985.0,0.17547]
[1733565329208,0.8106,3985.1,3985.0,0.17547]
[1733565329406,0.98607,3985.1,3985.0,0.17547]
[1733565333315,0.17547,3985.0,3984.8,4.11836874]
[1733565333512,0.90533173,3984.9,3984.8,4.11836874]
[1733565333713,0.90533173,3984.9,3984.8,4.19676106]
[1733565333913,1.08080173,3984.9,3984.8,40.97547]
[1733565338311,6.00434815,3984.9,3984.8,40.97547]
[1733565339521,5.82887815,3984.9,3984.8,40.97547]
[1733565339820,6.00434815,3984.9,3984.8,40.97547]
[1733565345921,6.00434815,3984.9,3984.8,0.17547]
[1733565346422,1.08080173,3984.9,3984.8,0.17547]
[1733565349440,0.17548,3984.7,3984.6,40.65801]
[1733565349824,0.82148,3984.7,3984.6,40.65801]
[1733565350926,3.77437921,3984.7,3984.6,40.65801]
[1733565351126,0.82148,3984.7,3984.6,40.65801]
[1733565351323,4.02928,3984.7,3984.6,37.98043356]
[1733565352033,9.85815815,3984.7,3984.6,36.46141825]
[1733565352336,9.85235055,3984.7,3984.6,36.46141825]
[1733565352530,14.85235055,3984.7,3984.6,36.46141825]
[1733565353235,9.93461173,3984.7,3984.6,36.46141825]
[1733565354131,5.83994346,3984.7,3984.6,36.46141825]
[1733565354333,9.77201641,3984.7,3984.6,36.46141825]
[1733565355337,5.83994346,3984.7,3984.6,36.46141825]
[1733565356230,9.77014063,3984.7,3984.6,35.94734187]
[1733565357035,7.95947717,3984.7,3984.6,35.94734187]
[1733565357341,4.93461173,3984.7,3984.6,35.94734187]
[1733565357537,5.13839892,3984.7,3984.6,35.94734187]
[1733565358137,8.08527186,3984.7,3984.6,35.94734187]
[1733565359644,5.13839892,3984.7,3984.6,35.94734187]
[1733565360337,11.05477944,3984.7,3984.6,23.90313318]
[1733565361244,5.38932986,3984.7,3984.6,23.90313318]
[1733565361538,5.18554267,3984.7,3984.6,23.90313318]
[1733565362343,3.63421094,3984.7,3984.6,23.90313318]
[1733565362541,10.09651136,3984.7,3984.6,23.90313318]
[1733565363542,9.19958042,3984.7,3984.6,24.07862318]
[1733565363846,9.84558042,3984.7,3984.6,23.90313318]
[1733565364035,9.84558042,3984.7,3984.6,24.07862318]
[1733565364443,9.84558042,3984.7,3984.6,23.90313318]
[1733565364638,9.84558042,3984.7,3984.6,24.07862318]
[1733565364639,3.2078,3984.7,3984.6,24.07862318]
[1733565364841,4.11313173,3984.7,3984.6,24.07862318]
[1733565365143,3.2078,3984.7,3984.6,24.07862318]
[1733565365351,4.11313173,3984.7,3984.6,24.07862318]
[1733565365744,7.06161345,3984.7,3984.6,24.07862318]
[1733565366046,4.11313173,3984.7,3984.6,24.07862318]
[1733565368249,8.04336943,3984.7,3984.6,24.07862318]
[1733565368442,4.11313173,3984.7,3984.6,24.07862318]
[1733565373350,3.2078,3984.7,3984.6,24.07862318]
[1733565374548,0.90533173,3984.8,3984.7,0.17548]
[1733565375849,0.90533173,3984.8,3984.7,4.11837874]
[1733565376452,0.90533173,3984.8,3984.7,0.17548]
[1733565377148,0.90533173,3984.8,3984.7,4.11837874]
[1733565377646,0.90533173,3984.8,3984.7,0.17548]
[1733565379653,5.049,3985.1,3984.6,28.75136365]
[1733565379654,4.404,3985.1,3984.6,28.75136365]
[1733565379856,3.2078,3985.1,3985.0,0.17547]
[1733565380051,3.2078,3985.1,3985.0,44.91836874]
[1733565380355,6.15801698,3985.8,3985.0,44.74289874]
[1733565380554,3.2078,3985.8,3985.7,0.17544]
[1733565380951,3.2078,3985.8,3985.7,4.11408331]
[1733565381152,3.2078,3985.8,3985.7,0.17544]
[1733565381358,3.2078,3985.8,3985.7,4.11408331]
[1733565381653,3.2078,3985.8,3985.7,0.17544]
[1733565381849,3.2078,3985.8,3985.7,4.11408331]
[1733565382047,0.90533173,3985.9,3985.8,0.17543]
[1733565383460,4.83556943,3985.9,3985.8,0.17543]
[1733565385253,0.90533173,3985.9,3985.8,0.17543]
[1733565385453,4.3375377,3986.0,3985.9,0.17543]
[1733565387157,0.4073,3986.0,3985.9,0.17543]
[1733565407873,0.4073,3986.0,3985.9,0.25380521]
[1733565408072,0.4073,3986.0,3985.9,0.17543]
[1733565408276,0.4073,3986.0,3985.9,0.25380521]
[1733565409276,0.4073,3986.0,3985.9,0.17543]
[1733565410370,0.4073,3986.0,3985.9,0.30082824]
[1733565410677,0.4073,3986.0,3985.9,0.37920214]
[1733565413680,4.3375377,3986.0,3985.9,0.37920214]
[1733565414274,4.3375377,3986.0,3985.9,0.17543]
[1733565417387,0.4073,3986.0,3985.9,0.17543]
[1733565420292,5.31826869,3986.0,3985.9,0.17543]
[1733565420586,0.4073,3986.0,3985.9,0.17543]
[1733565421084,0.4073,3986.0,3985.9,4.11407331]
[1733565421588,0.4073,3986.0,3985.9,4.31784098]
[1733565422293,0.4073,3986.0,3985.9,5.00788239]
[1733565422589,0.4073,3986.0,3985.9,5.08804076]
[1733565423180,0.4073,3986.0,3985.9,11.00472795]
[1733565424190,0.4073,3986.0,3985.9,5.08804076]
[1733565425189,0.4073,3986.0,3985.9,12.97617086]
[1733565426194,0.4073,3986.0,3985.9,14.36440967]
[1733565427591,0.4073,3986.0,3985.9,14.37362663]
[1733565428492,0.4073,3986.0,3985.9,14.37207179]
[1733565428699,0.4073,3986.0,3985.9,12.99092003]
[1733565429390,0.4073,3986.0,3985.9,12.91233098]
[1733565430591,3.3580419,3986.0,3985.9,5.01729188]
[1733565434297,0.4073,3986.0,3985.9,5.01729188]
[1733565435497,0.4073,3986.0,3985.9,4.93891983]
[1733565435688,0.4073,3986.0,3985.9,0.3791959]
[1733565436496,0.4073,3986.0,3985.9,0.2538015]
[1733565436996,0.4073,3986.0,3985.9,0.25380159]
[1733565443501,4.93174781,3986.0,3985.9,8.64667671]
[1733565443707,2.9591141,3986.5,3986.4,0.17541]
[1733565443904,2.9591141,3986.7,3986.4,56.78332841]
[1733565444110,2.9591141,3986.7,3986.5,12.91215365]
[1733565444408,2.9591141,3986.8,3986.7,0.17539]
[1733565444607,2.9591141,3987.0,3986.8,0.17539]
[1733565444906,2.9591141,3986.9,3986.8,6.0933258]
[1733565445113,2.9591141,3986.9,3986.8,11.05305915]
[1733565445306,2.9591141,3987.1,3987.0,0.17538]
[1733565445511,2.9591141,3987.1,3987.0,0.61568708]
[1733565445809,2.9591141,3987.5,3987.0,4.82805624]
[1733565446110,2.9591141,3987.5,3987.4,0.17536]
[1733565446299,3.2078,3987.8,3987.4,0.17536]
[1733565446300,2.9591141,3987.6,3987.5,0.17536]
[1733565446502,2.9591141,3987.6,3987.5,0.25370635]
[1733565447413,1.1859,3987.7,3987.5,0.07834635]
[1733565447414,4.1450141,3987.7,3987.5,0.07834635]
[1733565447707,4.3203641,3987.7,3987.6,0.17536]
[1733565448114,4.1450141,3987.7,3987.6,0.17536]
[1733565448310,1.1859,3987.7,3987.6,0.17536]
[1733565450106,1.36125,3987.7,3987.6,0.17536]
[1733565450802,1.36125,3987.7,3987.2,0.90533173]
[1733565451007,1.36125,3987.7,3987.3,0.07834797]
[1733565451312,1.36125,3987.7,3987.6,0.17536]
[1733565455211,1.1859,3987.7,3986.7,3.2078]
[1733565455415,0.17538,3987.2,3987.1,0.17537]
[1733565456011,0.90533173,3987.4,3986.7,3.2078]
[1733565456205,3.93022298,3986.9,3986.8,0.17539]
[1733565456408,3.93022298,3987.0,3986.9,0.17539]
[1733565457419,0.17539,3986.8,3986.7,0.17539]
[1733565457712,0.17539,3986.8,3986.5,40.8]
[1733565457713,0.17539,3987.0,3986.9,0.17538]
[1733565457912,0.1754,3986.7,3986.6,0.17539]
[1733565458613,0.17539,3986.9,3986.8,0.17539]
[1733565459009,0.1754,3986.8,3986.7,0.17539]
[1733565462015,3.38319,3987.0,3986.9,0.17539]
[1733565462416,0.17539,3986.9,3986.8,0.17539]
[1733565462721,0.1754,3986.8,3986.7,0.17539]
[1733565464119,0.1754,3986.8,3986.7,0.2537512]
[1733565466723,0.1754,3986.8,3986.7,0.17539]
[1733565467523,0.1754,3986.7,3986.6,0.17539]
[1733565471323,3.2078,3986.9,3986.8,0.17539]
[1733565471514,3.2078,3986.9,3986.8,1.08072173]
[1733565472817,3.2078,3986.9,3986.8,41.88072173]
[1733565473629,3.2078,3986.9,3986.8,41.95907721]
[1733565473926,7.13758835,3986.9,3986.8,41.9590772]
[1733565478031,3.92978835,3986.9,3986.8,42.08444602]
[1733565478232,3.92978835,3986.9,3986.8,41.9590772]
[1733565479326,3.93343868,3986.9,3986.8,41.9590772]
[1733565479525,9.29552284,3987.1,3986.8,41.90905681]
[1733565479734,9.29552284,3987.1,3987.0,0.17538]
[1733565479938,9.29552284,3987.1,3987.0,0.25373547]
[1733565480434,9.47090284,3987.1,3987.0,0.25373547]
[1733565480835,4.55788,3987.1,3987.0,0.25373547]
[1733565481834,4.55788,3987.1,3987.0,0.17538]
[1733565482030,4.3825,3987.1,3987.0,0.17538]
[1733565483237,3.2078,3987.1,3987.0,0.17538]
[1733565483639,0.57556,3987.4,3987.3,0.17537]
[1733565483840,0.4002,3987.4,3987.3,0.17537]
[1733565485742,0.57556,3987.4,3987.3,0.17537]
[1733565486947,0.4002,3987.4,3987.2,0.90533173]
[1733565487153,0.17537,3987.3,3987.2,1.08070173]
[1733565487541,0.57557,3987.4,3987.3,0.17537]
[1733565488244,3.52596569,3987.4,3987.3,0.17537]
[1733565488643,3.35059569,3987.4,3987.0,0.3977]
[1733565488842,5.08840284,3987.2,3987.1,0.5357879]
[1733565489351,5.09986706,3987.2,3987.1,0.5357879]
[1733565489548,5.09986706,3987.2,3987.1,0.3604179]
[1733565489748,1.08071173,3987.2,3987.1,0.07835094]
[1733565490047,6.97544499,3987.2,3987.1,0.07836026]
[1733565490247,6.98976555,3987.2,3987.1,0.07836026]
[1733565490944,1.08071173,3987.2,3987.1,0.07836026]
[1733565491442,0.17539,3986.7,3986.6,40.8]
[1733565491644,0.17539,3986.7,3986.6,0.12537954]
[1733565492346,0.56229,3986.7,3986.6,0.12537954]
[1733565493649,0.1754,3986.6,3986.5,40.8]
[1733565493848,1.08073173,3986.6,3986.5,0.12538879]
[1733565494049,0.90533173,3986.6,3986.1,0.90533173]
[1733565494243,0.90533173,3986.6,3986.2,0.30080948]
[1733565494244,0.17542,3986.3,3986.2,0.30080948]
[1733565494646,0.17542,3986.3,3986.2,0.12538948]
[1733565494958,1.08075173,3986.3,3986.2,0.12538948]
[1733565496158,1.08075173,3986.3,3985.9,0.17543]
[1733565496159,0.90533173,3986.3,3985.9,0.17543]
[1733565496348,0.17543,3986.0,3985.9,4.1185681]
[1733565496545,0.17543,3986.0,3985.9,4.24396795]
[1733565496749,0.17543,3986.0,3985.9,4.1185681]
[1733565496958,0.17543,3986.0,3985.9,4.40072179]
[1733565497149,0.17543,3986.0,3985.9,0.45758369]
[1733565497350,0.17543,3986.0,3985.9,0.30083164]
[1733565498155,0.8204,3986.2,3985.9,0.12540164]
[1733565498463,0.17542,3986.1,3986.0,0.30082164]
[1733565500254,0.8204,3986.2,3986.0,0.17542]
[1733565500461,0.8204,3986.2,3986.1,0.12540026]
[1733565500765,0.99582,3986.2,3986.1,0.12540026]
[1733565501254,0.8204,3986.2,3985.8,44.9185681]
[1733565501553,0.17542,3986.1,3985.9,0.12540177]
[1733565501755,0.17542,3986.1,3986.0,0.12540177]
[1733565502259,0.99582,3986.2,3986.0,0.12540177]
[1733565502454,0.99582,3986.2,3985.9,0.17543]
[1733565502760,0.17542,3986.1,3986.0,0.12540174]
[1733565502962,0.99582,3986.2,3986.0,0.12540174]
[1733565503156,0.99582,3986.2,3985.9,0.17543]
[1733565503357,0.99582,3986.2,3986.0,0.12540149]
[1733565503557,0.99582,3986.2,3986.1,0.078376]
[1733565503759,0.17542,3986.1,3985.8,3.9431381]
[1733565504065,3.93996086,3985.9,3985.8,0.17543]
[1733565506077,2.95287391,3985.9,3985.8,0.25380574]
[1733565506364,3.93996086,3986.1,3986.0,0.17543]
[1733565506665,3.93996086,3986.1,3986.0,40.97543]
[1733565506863,3.93996086,3986.1,3986.0,41.88076173]
[1733565507158,8.13275107,3986.4,3986.0,41.78370044]
[1733565507159,3.93996086,3986.3,3986.0,41.78370044]
[1733565507364,2.95278382,3986.1,3986.0,41.88076173]
[1733565507555,2.95278382,3986.1,3986.0,41.95912693]
[1733565507759,3.93996086,3986.3,3986.0,41.78369693]
[1733565508061,3.93996086,3986.3,3986.0,41.70533173]
[1733565508260,3.93996086,3986.3,3986.2,0.17542]
[1733565510963,0.7787,3986.5,3986.4,0.17541]
[1733565511867,0.7787,3986.5,3986.4,0.25377724]
[1733565516366,0.7787,3986.5,3986.4,0.3791655]
[1733565517769,0.7787,3986.5,3986.4,0.25377724]
[1733565518162,0.7787,3986.5,3986.4,0.37916417]
[1733565518460,0.7787,3986.5,3986.4,0.25377724]
[1733565519562,6.93918768,3986.5,3986.4,0.25377724]
[1733565519861,3.9865,3986.5,3986.4,0.25377724]
[1733565520966,3.9865,3986.5,3986.4,0.17541]
[1733565521272,3.9865,3986.5,3986.4,0.25377823]
[1733565523574,3.9865,3986.5,3986.4,0.37916747]
[1733565523762,3.9865,3986.5,3986.4,0.25377823]
[1733565523958,0.7787,3986.5,3986.4,0.25377823]
[1733565524168,0.7787,3986.5,3986.4,0.37916386]
[1733565524468,3.33538768,3986.7,3986.4,0.37916386]
[1733565524469,0.3827,3986.7,3986.4,0.20375475]
[1733565524669,0.7586,3986.7,3986.5,0.20375475]
[1733565524865,0.7586,3986.7,3986.6,0.20375475]
[1733565525065,0.7586,3986.7,3986.6,0.37915475]
[1733565526071,5.68355107,3986.7,3986.6,0.1754]
[1733565529067,0.7586,3986.7,3986.6,0.1754]
[1733565529266,0.7586,3986.7,3986.6,0.25376063]
[1733565529571,0.3965,3986.8,3986.7,0.17539]
[1733565529770,0.3965,3986.8,3986.7,0.25375063]
[1733565530773,8.13275107,3986.9,3986.8,0.17539]
[1733565532564,8.13275107,3986.9,3986.8,1.08072173]
[1733565532767,0.3807,3987.1,3986.9,0.17539]
[1733565532966,0.3847,3987.2,3987.1,0.17538]
[1733565533372,0.3847,3987.2,3987.1,0.25372631]
[1733565533876,0.3847,3987.2,3987.1,0.17538]
[1733565535071,0.3847,3987.2,3987.1,0.25372417]
[1733565535266,0.3847,3987.2,3987.1,0.17538]
[1733565535472,0.3847,3987.2,3987.1,0.37907542]
[1733565536068,3.73051915,3987.6,3987.1,0.20369542]
[1733565536280,0.7761,3987.6,3987.5,0.17536]
[1733565536472,0.7761,3987.6,3987.5,0.25370439]
[1733565536674,0.7761,3987.6,3987.5,1.15903612]
[1733565536873,0.3922,3987.6,3987.5,1.15903612]
[1733565537073,2.95441915,3988.0,3987.5,1.1090222]
[1733565537379,4.0031,3988.1,3988.0,0.17534]
[1733565537679,4.0031,3988.1,3988.0,0.25368439]
[1733565537875,3.2078,3988.1,3988.0,41.05368439]
[1733565538868,3.2078,3988.1,3988.0,41.45438439]
[1733565540879,3.2078,3988.1,3988.0,41.37604]
[1733565541084,3.2078,3988.1,3988.0,0.17534]
[1733565541879,8.13275107,3988.1,3988.0,0.17534]
[1733565542075,8.13275107,3988.1,3987.5,0.90533173]
[1733565542282,2.94787793,3987.6,3987.5,1.08069173]
[1733565542677,2.94787793,3987.6,3987.5,0.17536]
[1733565542878,2.94787793,3987.6,3987.5,1.08069173]
[1733565543579,2.94787793,3987.6,3987.5,0.17536]
[1733565543876,2.94787793,3987.6,3987.5,1.08069173]
[1733565544383,3.33447793,3987.7,3987.6,0.17536]
[1733565544681,4.31710391,3987.7,3987.6,0.17536]
[1733565544877,0.7836,3987.7,3987.6,0.17536]
[1733565546078,4.71191858,3987.7,3987.6,0.17536]
[1733565546782,3.9914,3987.7,3987.6,0.17536]
[1733565547085,5.07208173,3987.7,3987.6,0.17536]
[1733565547274,5.07208173,3987.7,3987.3,0.17537]
[1733565547478,4.90966305,3987.5,3987.4,0.17536]
[1733565548187,4.89673173,3987.7,3987.6,0.17536]
[1733565552184,5.07208173,3987.7,3987.6,0.17536]
[1733565552484,4.89673173,3987.7,3987.2,40.8]
[1733565552677,0.7836,3987.7,3987.6,0.17536]
[1733565552883,3.2078,3988.1,3987.6,1.15903998]
[1733565553183,3.2078,3988.1,3988.0,1.08067173]
[1733565553484,3.2078,3988.1,3988.0,1.15901998]
[1733565556182,3.2078,3988.1,3988.0,1.08067173]
[1733565556682,3.2078,3988.1,3988.0,0.17534]
[1733565558283,3.612,3988.3,3988.2,0.17533]
[1733565559989,0.7739,3988.4,3988.0,0.90533173]
[1733565560183,0.7739,3988.4,3988.3,1.08065173]
[1733565563988,0.7739,3988.4,3988.3,1.28429648]
[1733565567292,3.2078,3988.7,3988.6,0.17531]
[1733565567491,3.5894,3988.7,3988.6,0.2536349]
[1733565568190,6.53549129,3988.7,3988.6,0.17531]
[1733565568388,3.5894,3988.7,3988.6,0.17531]
[1733565568583,6.53430913,3988.7,3988.6,0.17531]
[1733565568991,3.5894,3988.7,3988.6,0.17531]
[1733565569288,6.53426396,3988.7,3988.6,0.17531]
[1733565571098,3.5894,3988.7,3988.6,0.17531]
[1733565573297,3.5894,3988.7,3988.6,0.25363356]
[1733565576605,3.5894,3988.7,3988.6,0.17531]
[1733565577398,3.5894,3988.7,3988.6,0.25363194]
[1733565577798,0.3816,3988.7,3988.6,0.25363194]
[1733565579195,0.3816,3988.7,3988.6,0.17531]
[1733565580200,4.30972172,3988.7,3988.6,0.17531]
[1733565580402,0.3816,3988.7,3988.6,0.17531]
[1733565581198,4.30972172,3988.7,3988.6,0.17531]
[1733565586308,0.3816,3988.7,3988.6,0.37894659]
[1733565590605,0.3816,3988.7,3988.6,0.37894543]
[1733565590800,0.3816,3988.7,3988.6,0.17531]
[1733565591000,0.3816,3988.7,3988.6,0.30062413]
[1733565591201,0.3816,3988.7,3988.6,0.37894546]
[1733565591601,0.3816,3988.7,3988.6,0.37894551]
[1733565592514,0.3816,3988.7,3988.6,1.28427724]
[1733565594304,0.3816,3988.7,3988.6,1.08064173]
[1733565594516,0.3816,3988.7,3988.6,1.15896357]
[1733565594816,0.3816,3988.7,3988.6,1.08064173]
[1733565595003,0.3816,3988.7,3988.6,1.15896395]
[1733565595201,0.3816,3988.7,3988.6,1.08064173]
[1733565595407,5.29126305,3988.7,3988.6,1.08064173]
[1733565595611,4.90966305,3988.7,3988.6,1.08064173]
[1733565595801,3.93618673,3988.7,3988.6,2.06429529]
[1733565596007,3.93618673,3988.7,3988.6,41.95896356]
[1733565596207,3.93618673,3988.8,3988.6,41.78365356]
[1733565596401,0.4008,3988.9,3988.7,0.07832183]
[1733565596603,0.4008,3988.9,3988.8,0.25362183]
[1733565597413,5.31046305,3988.9,3988.8,0.3789312]
[1733565597914,5.31046305,3988.9,3988.8,0.37892753]
[1733565598304,0.4008,3988.9,3988.8,0.37892753]
[1733565598506,5.31046305,3988.9,3988.8,0.37892753]
[1733565598917,0.4008,3988.9,3988.8,0.37892753]
[1733565600010,0.4008,3988.9,3988.8,1.28425926]
[1733565600314,0.4008,3988.9,3988.8,1.28426019]
[1733565600908,0.4008,3988.9,3988.8,1.08063173]
[1733565601112,0.4008,3988.9,3988.8,1.48788665]
[1733565601514,0.4008,3988.9,3988.8,1.64452504]
[1733565601911,0.4008,3988.9,3988.8,7.55923219]